[Event "71st RUS-ch Higher League 2018"]
[Site "Yaroslavl"]
[Date "2018.07.05"]
[Round "9"]
[White "Yanchenko, Roman"]
[Black "Sek, Konstantin"]
[Result "1/2-1/2"]
[ECO "A35"]
[WhiteElo "2462"]
[BlackElo "2476"]
[Annotator "ChessBase"]
[PlyCount "234"]
[EventDate "2018.06.26"]
[EventType "swiss"]
[EventCountry "RUS"]
[SourceTitle "playchess.com"]
[Source "ChessBase"]
[SourceQuality "1"]
[TimeControl "40/5400+30:1800+30"]

1. Nf3 {[%emt 0:00:00]} c5 {[%emt 0:01:23]} 2. c4 {[%emt 0:00:07]} Nf6 {[%emt 0:00:15]} 3. Nc3 {[%emt 0:00:51]} Nc6 {[%emt 0:00:11]} 4. g3 {[%emt 0:00:15]} d5 {[%emt 0:00:21]} 5. cxd5 {[%emt 0:00:12]} Nxd5 {[%emt 0:00:06]} 6. Bg2 {[%emt 0:00:29]} Nc7 {[%emt 0:00:08]} 7. d3 {[%emt 0:02:15]} e5 {[%emt 0:00:09]} 8. Be3 {[%emt 0:01:25]} Be7 {[%emt 0:00:23]} 9. Rc1 {[%emt 0:00:26]} O-O {[%emt 0:01:15]} 10. Na4 {[%emt 0:02:31]} b6 {[%emt 0:01:16]} 11. b4 {[%emt 0:00:36]} e4 {[%emt 0:05:15]} 12. dxe4 {[%emt 0:27:56]} Nxb4 {[%emt 0:02:01]} 13. Qxd8 {[%emt 0:01:31]} Rxd8 {[%emt 0:00:07]} 14. a3 {[%emt 0:00:09]} Nba6 {[%emt 0:02:23]} 15. Nd2 {[%emt 0:04:28]} c4 {[%emt 0:07:15]} 16. e5 {[%emt 0:04:47]} Rb8 {[%emt 0:01:12]} 17. Nxc4 {[%emt 0:01:30]} Be6 {[%emt 0:04:34]} 18. Nd6 {[%emt 0:07:55]} f6 {[%emt 0:06:30]} 19. f4 {[%emt 0:00:05]} fxe5 {[%emt 0:00:39]} 20. fxe5 {[%emt 0:00:02]} Ne8 {[%emt 0:05:24]} 21. Nb5 {[%emt 0:03:34]} Bb3 {[%emt 0:07:20]} 22. Nac3 {[%emt 0:00:42]} Nac7 {[%emt 0:04:19]} 23. O-O {[%emt 0:02:33]} a5 {[%emt 0:04:29]} 24. Nd4 {[%emt 0:00:45]} Bc5 {[%emt 0:01:53]} 25. Nf5 {[%emt 0:04:52]} Bxa3 {[%emt 0:00:27]} 26. Rb1 {[%emt 0:02:16]} a4 {[%emt 0:04:23]} 27. Nxa4 {[%emt 0:00:06]} Bxa4 {[%emt 0:05:46]} 28. Ra1 {[%emt 0:00:05]} Bf8 {[%emt 0:00:14]} 29. Rxa4 {[%emt 0:00:05]} b5 {[%emt 0:01:22]} 30. Rg4 {[%emt 0:03:08]} g6 {[%emt 0:00:11]} 31. Nh6+ {[%emt 0:01:05]} Bxh6 {[%emt 0:00:07]} 32. Bxh6 {[%emt 0:00:02]} Ne6 {[%emt 0:01:07]} 33. Rb4 {[%emt 0:04:37]} N8c7 {[%emt 0:00:55]} 34. Bh3 {[%emt 0:01:17]} Rd5 {[%emt 0:01:18]} 35. e4 {[%emt 0:05:10]} Rxe5 {[%emt 0:01:14]} 36. Bg4 {[%emt 0:00:02]} Re8 {[%emt 0:06:44]} 37. Bd1 {[%emt 0:01:47]} Na6 {[%emt 0:04:37]} 38. Rb2 {[%emt 0:00:05]} Nac5 {[%emt 0:06:19]} 39. Rxb5 {[%emt 0:02:24]} Rxe4 {[%emt 0:00:06]} 40. Ra5 {[%emt 0:00:00]} Rd8 {[%emt 0:00:00]} 41. Bc2 {[%emt 0:04:53]} Rc4 {[%emt 0:03:33]} 42. Bb1 {[%emt 0:00:50]} Kh8 {[%emt 0:03:35]} 43. Ba2 {[%emt 0:01:13]} Rc2 {[%emt 0:00:19]} 44. Ra7 {[%emt 0:00:38]} Re2 {[%emt 0:02:30]} 45. Rc1 {[%emt 0:03:57]} Re8 {[%emt 0:18:42]} 46. Rd1 {[%emt 0:03:55]} g5 {[%emt 0:03:54]} 47. Rf1 {[%emt 0:01:11]} Kg8 {[%emt 0:01:42]} 48. Bb1 {[%emt 0:01:08]} Ne4 {[%emt 0:00:48]} 49. Bd3 {[%emt 0:00:05]} Re3 {[%emt 0:00:10]} 50. Bb5 {[%emt 0:00:12]} Rb8 {[%emt 0:01:00]} 51. Bc6 {[%emt 0:04:14]} Nc3 {[%emt 0:04:20]} 52. Re7 {[%emt 0:01:26]} Re2 {[%emt 0:01:26]} 53. Be8 {[%emt 0:01:19]} Nf4 {[%emt 0:01:02]} 54. Bf7+ {[%emt 0:06:38]} Kh8 {[%emt 0:00:07]} 55. Rxe2 {[%emt 0:00:02]} Nfxe2+ {[%emt 0:00:20]} 56. Kg2 {[%emt 0:00:53]} Ne4 {[%emt 0:01:46]} 57. Bc4 {[%emt 0:02:54]} Nd4 {[%emt 0:01:19]} 58. Rf7 {[%emt 0:02:13]} Nd6 {[%emt 0:02:34]} 59. Bg7+ {[%emt 0:01:54]} Kg8 {[%emt 0:00:04]} 60. Rd7+ {[%emt 0:00:03]} Nxc4 {[%emt 0:00:07]} 61. Bxd4 {[%emt 0:00:02]} Rb5 {[%emt 0:01:17]} 62. Rg7+ {[%emt 0:00:36]} Kf8 {[%emt 0:00:05]} 63. Rc7 {[%emt 0:01:06]} Nd2 {[%emt 0:00:46]} 64. Rxh7 {[%emt 0:00:10]} Rd5 {[%emt 0:00:37]} 65. Be3 {[%emt 0:01:06]} Ne4 {[%emt 0:01:35]} 66. Ra7 {[%emt 0:01:34]} Rd3 {[%emt 0:00:53]} 67. Kf3 {[%emt 0:01:26]} Nf6 {[%emt 0:00:13]} 68. Ke2 {[%emt 0:00:10]} Rd5 {[%emt 0:00:06]} 69. h3 {[%emt 0:00:44]} Re5 {[%emt 0:01:10]} 70. Kf3 {[%emt 0:03:10]} Rf5+ {[%emt 0:02:14]} 71. Kg2 {[%emt 0:00:06]} Nd5 {[%emt 0:00:37]} 72. Bc5+ {[%emt 0:00:28]} Kg8 {[%emt 0:00:05]} 73. Bd4 {[%emt 0:00:04]} Kf8 {[%emt 0:00:47]} 74. Rb7 {[%emt 0:00:11]} Ke8 {[%emt 0:00:39]} 75. Kh2 {[%emt 0:00:40]} Ne7 {[%emt 0:00:43]} 76. g4 {[%emt 0:00:13]} Rd5 {[%emt 0:00:12]} 77. Bf6 {[%emt 0:00:25]} Ng6 {[%emt 0:00:19]} 78. Rb2 {[%emt 0:03:21]} Kf7 {[%emt 0:00:29]} 79. Rf2 {[%emt 0:00:23]} Ke6 {[%emt 0:00:47]} 80. Bb2 {[%emt 0:00:17]} Nh4 {[%emt 0:01:28]} 81. Re2+ {[%emt 0:01:03]} Kf7 {[%emt 0:00:08]} 82. Ba3 {[%emt 0:01:42]} Rd3 {[%emt 0:00:23]} 83. Bc5 {[%emt 0:00:17]} Nf3+ {[%emt 0:00:11]} 84. Kh1 {[%emt 0:00:18]} Rd2 {[%emt 0:01:52]} 85. Rxd2 {[%emt 0:00:12]} Nxd2 {[%emt 0:00:01]} 86. Be3 {[%emt 0:00:12]} Ne4 {[%emt 0:00:08]} 87. Kg2 {[%emt 0:00:01]} Kg6 {[%emt 0:00:14]} 88. Kf3 {[%emt 0:00:04]} Nd6 {[%emt 0:00:24]} 89. Bd4 {[%emt 0:00:15]} Kf7 {[%emt 0:00:48]} 90. Be5 {[%emt 0:00:26]} Nc4 {[%emt 0:00:24]} 91. Bc7 {[%emt 0:00:13]} Ke6 {[%emt 0:00:17]} 92. Ke4 {[%emt 0:00:33]} Nd2+ {[%emt 0:00:25]} 93. Ke3 {[%emt 0:00:13]} Nc4+ {[%emt 0:00:25]} 94. Ke2 {[%emt 0:00:55]} Nd6 {[%emt 0:01:31]} 95. Kd3 {[%emt 0:01:38]} Nf7 {[%emt 0:01:18]} 96. Kd4 {[%emt 0:00:06]} Kd7 {[%emt 0:00:18]} 97. Bg3 {[%emt 0:00:03]} Ke6 {[%emt 0:00:06]} 98. Bh2 {[%emt 0:00:20]} Nh8 {[%emt 0:00:24]} 99. Be5 {[%emt 0:00:19]} Ng6 {[%emt 0:00:17]} 100. Bg3 {[%emt 0:00:02]} Nh8 {[%emt 0:00:11]} 101. Kc5 {[%emt 0:00:02]} Ng6 {[%emt 0:00:25]} 102. Bc7 {[%emt 0:00:26]} Ne5 {[%emt 0:00:32]} 103. Kd4 {[%emt 0:01:02]} Nf7 {[%emt 0:00:25]} 104. Ba5 {[%emt 0:00:13]} Nd6 {[%emt 0:00:45]} 105. Bd2 {[%emt 0:00:07]} Nf7 {[%emt 0:00:15]} 106. Bc1 {[%emt 0:00:10]} Ne5 {[%emt 0:00:20]} 107. Ke4 {[%emt 0:00:11]} Nf7 {[%emt 0:00:07]} 108. Ba3 {[%emt 0:00:01]} Ne5 {[%emt 0:00:13]} 109. Bb4 {[%emt 0:00:38]} Nf7 {[%emt 0:00:31]} 110. Bc5 {[%emt 0:00:25]} Ne5 {[%emt 0:00:44]} 111. Ba7 {[%emt 0:00:02]} Nf7 {[%emt 0:00:32]} 112. Bb8 {[%emt 0:00:02]} Nh8 {[%emt 0:00:45]} 113. Kd4 {[%emt 0:00:01]} Ng6 {[%emt 0:00:25]} 114. Bg3 {[%emt 0:00:05]} Ne7 {[%emt 0:00:37]} 115. Kc5 {[%emt 0:00:14]} Ng6 {[%emt 0:00:19]} 116. Kc6 {[%emt 0:00:35]} Nf4 {[%emt 0:00:36]} 117. h4 {[%emt 0:00:02]} Ne2 {[%emt 0:00:11]} 1/2-1/2

[Event "71st RUS-ch Higher League 2018"]
[Site "Yaroslavl"]
[Date "2018.07.05"]
[Round "9"]
[White "Vastrukhin, Oleg"]
[Black "Moskalenko, Alexander"]
[Result "1/2-1/2"]
[ECO "A00"]
[WhiteElo "2420"]
[BlackElo "2558"]
[Annotator "ChessBase"]
[PlyCount "72"]
[EventDate "2018.06.26"]
[EventType "swiss"]
[EventCountry "RUS"]
[SourceTitle "playchess.com"]
[Source "ChessBase"]
[SourceQuality "1"]
[TimeControl "40/5400+30:1800+30"]

1. g3 {[%emt 0:00:00]} g6 {[%emt 0:08:15]} 2. Bg2 {[%emt 0:01:14]} Bg7 {[%emt 0:01:01]} 3. d4 {[%emt 0:00:46]} d5 {[%emt 0:00:21]} 4. Nf3 {[%emt 0:00:30]} Nf6 {[%emt 0:00:05]} 5. O-O {[%emt 0:00:05]} O-O {[%emt 0:00:20]} 6. Nbd2 {[%emt 0:00:24]} c5 {[%emt 0:01:06]} 7. dxc5 {[%emt 0:01:29]} Qc7 {[%emt 0:00:12]} 8. Nb3 {[%emt 0:08:32]} e5 {[%emt 0:03:45]} 9. Ne1 {[%emt 0:06:11]} Na6 {[%emt 0:10:09]} 10. Nd3 {[%emt 0:03:35]} Be6 {[%emt 0:09:50]} 11. c3 {[%emt 0:05:01]} Rfe8 {[%emt 0:12:02]} 12. f3 {[%emt 0:07:23]} Bf8 {[%emt 0:14:17]} 13. Be3 {[%emt 0:05:49]} Bf5 {[%emt 0:04:45]} 14. Qd2 {[%emt 0:04:43]} Bxd3 {[%emt 0:01:31]} 15. exd3 {[%emt 0:00:51]} Nxc5 {[%emt 0:00:37]} 16. Nxc5 {[%emt 0:02:31]} Bxc5 {[%emt 0:00:17]} 17. d4 {[%emt 0:00:10]} exd4 {[%emt 0:07:07]} 18. Bxd4 {[%emt 0:01:09]} Re6 {[%emt 0:05:00]} 19. Bh3 {[%emt 0:03:57]} Re7 {[%emt 0:01:54]} 20. Rfe1 {[%emt 0:00:17]} Rae8 {[%emt 0:00:18]} 21. Rxe7 {[%emt 0:01:06]} Qxe7 {[%emt 0:01:42]} 22. Bf1 {[%emt 0:01:46]} b6 {[%emt 0:03:13]} 23. Bb5 {[%emt 0:02:20]} Rd8 {[%emt 0:00:24]} 24. Kf2 {[%emt 0:02:45]} Rd6 {[%emt 0:01:37]} 25. Re1 {[%emt 0:00:55]} Re6 {[%emt 0:01:30]} 26. Re3 {[%emt 0:00:23]} Kg7 {[%emt 0:02:34]} 27. Bf1 {[%emt 0:02:04]} h5 {[%emt 0:00:49]} 28. Bh3 {[%emt 0:00:36]} Rxe3 {[%emt 0:00:40]} 29. Qxe3 {[%emt 0:00:12]} Qc7 {[%emt 0:01:18]} 30. Ke1 {[%emt 0:02:36]} Bxd4 {[%emt 0:02:24]} 31. Qxd4 {[%emt 0:01:54]} Qd6 {[%emt 0:00:37]} 32. Kf2 {[%emt 0:00:24]} Kf8 {[%emt 0:00:14]} 33. Ke3 {[%emt 0:00:34]} Ke7 {[%emt 0:00:39]} 34. Kd2 {[%emt 0:00:49]} Kf8 {[%emt 0:00:49]} 35. Ke3 {[%emt 0:00:05]} Ke7 {[%emt 0:00:04]} 36. Kd2 {[%emt 0:00:05]} Kf8 {[%emt 0:00:05]} 1/2-1/2

[Event "71st RUS-ch Higher League 2018"]
[Site "Yaroslavl"]
[Date "2018.07.05"]
[Round "9"]
[White "Gogolev, Artem"]
[Black "Bimiev, Ahmad"]
[Result "1-0"]
[ECO "E09"]
[WhiteElo "2407"]
[BlackElo "2125"]
[Annotator "NA"]
[PlyCount "117"]
[EventDate "2018.06.26"]
[EventType "swiss"]
[EventCountry "RUS"]
[SourceTitle "playchess.com"]
[Source "ChessBase"]
[SourceQuality "1"]
[TimeControl "40/5400+30:1800+30"]

1. d4 {[%emt 0:00:12]} Nf6 {[%emt 0:00:00]} 2. c4 {[%emt 0:00:05]} e6 {[%emt 0:00:00]} 3. g3 {[%emt 0:00:03]} d5 {[%emt 0:00:00]} 4. Bg2 {[%emt 0:00:05]} Be7 {[%emt 0:00:07]} 5. Nf3 {[%emt 0:00:05]} Nbd7 {[%emt 0:00:07]} 6. O-O {[%emt 0:00:14]} c6 {[%emt 0:00:41]} 7. Qc2 {[%emt 0:00:08]} O-O {[%emt 0:02:20]} 8. Nbd2 {[%emt 0:00:07]} b6 {[%emt 0:03:44]} 9. e4 {[%emt 0:00:07]} dxe4 {[%emt 0:02:09]} 10. Nxe4 {[%emt 0:00:05]} Nxe4 {[%emt 0:00:08]} 11. Qxe4 {[%emt 0:00:03]} Bb7 {[%emt 0:03:25]} 12. Rd1 {[%emt 0:00:05]} Nf6 {[%emt 0:02:54]} 13. Qc2 {[%emt 0:00:13]} Qc8 {[%emt 0:03:46]} 14. c5 {[%emt 0:05:16]} Rd8 {[%emt 0:00:14]} 15. Bd2 {[%emt 0:02:48]} Nd5 {[%emt 0:03:59]} 16. Ne5 {[%emt 0:02:58]} Qc7 {[%emt 0:10:29]} 17. Re1 {[%emt 0:08:15]} Nf6 {[%emt 0:11:45]} 18. cxb6 {[%emt 0:23:40]} Qxb6 {[%emt 0:00:21]} 19. Nxc6 {[%emt 0:00:27]} Bxc6 {[%emt 0:00:23]} 20. Qxc6 {[%emt 0:00:04]} Qxc6 {[%emt 0:00:18]} 21. Bxc6 {[%emt 0:00:07]} Rac8 {[%emt 0:00:04]} 22. Bf3 {[%emt 0:02:12]} Rxd4 {[%emt 0:00:39]} 23. Be3 {[%emt 0:00:38]} Rd7 {[%emt 0:02:20]} 24. Rec1 {[%emt 0:03:20]} Rdc7 {[%emt 0:00:44]} 25. Kf1 {[%emt 0:01:51]} Kf8 {[%emt 0:04:37]} 26. Ke2 {[%emt 0:01:17]} Nd5 {[%emt 0:02:25]} 27. Bxd5 {[%emt 0:02:12]} exd5 {[%emt 0:00:21]} 28. Kd3 {[%emt 0:12:07]} Bf6 {[%emt 0:01:36]} 29. Rxc7 {[%emt 0:00:55]} Rxc7 {[%emt 0:00:02]} 30. Rc1 {[%emt 0:00:08]} Rxc1 {[%emt 0:00:21]} 31. Bxc1 {[%emt 0:00:04]} Ke7 {[%emt 0:00:08]} 32. b3 {[%emt 0:01:59]} a6 {[%emt 0:04:20]} 33. Be3 {[%emt 0:00:55]} g6 {[%emt 0:00:13]} 34. Bd4 {[%emt 0:01:03]} Bg5 {[%emt 0:00:08]} 35. f4 {[%emt 0:01:17]} Bh6 {[%emt 0:00:08]} 36. Kc3 {[%emt 0:00:14]} Kd6 {[%emt 0:00:28]} 37. Kb4 {[%emt 0:00:26]} Kc6 {[%emt 0:00:04]} 38. Ka5 {[%emt 0:00:11]} Kb7 {[%emt 0:00:10]} 39. b4 {[%emt 0:00:29]} g5 {[%emt 0:00:31]} 40. b5 {[%emt 0:00:00]} axb5 {[%emt 0:00:00]} 41. fxg5 {[%emt 0:01:59]} Bxg5 {[%emt 0:00:27]} 42. Kxb5 {[%emt 0:00:06]} Be7 {[%emt 0:00:09]} 43. a4 {[%emt 0:00:12]} f5 {[%emt 0:27:21]} 44. a5 {[%emt 0:00:25]} Bg5 {[%emt 0:01:10]} 45. a6+ {[%emt 0:00:23]} Ka8 {[%emt 0:00:20]} 46. Kc6 {[%emt 0:00:50]} f4 {[%emt 0:00:05]} 47. gxf4 {[%emt 0:00:29]} Bxf4 {[%emt 0:00:06]} 48. h3 {[%emt 0:00:03]} h5 {[%emt 0:01:49]} 49. Kxd5 {[%emt 0:00:06]} h4 {[%emt 0:00:07]} 50. Ke4 {[%emt 0:00:31]} Bg3 {[%emt 0:01:25]} 51. Kf3 {[%emt 0:00:18]} Bd6 {[%emt 0:00:14]} 52. Bf2 {[%emt 0:00:15]} Be7 {[%emt 0:00:12]} 53. Kg4 {[%emt 0:00:05]} Bf6 {[%emt 0:00:06]} 54. Bxh4 {[%emt 0:00:32]} Bd4 {[%emt 0:00:02]} 55. Bg5 {[%emt 0:00:13]} Ka7 {[%emt 0:00:07]} 56. h4 {[%emt 0:00:08]} Kxa6 {[%emt 0:00:17]} 57. Kf5 {[%emt 0:00:34]} Kb7 {[%emt 0:01:53]} 58. h5 {[%emt 0:00:10]} Kc6 {[%emt 0:00:06]} 59. h6 {[%emt 0:01:24]} 1-0

[Event "71st RUS-ch Higher League 2018"]
[Site "Yaroslavl"]
[Date "2018.07.05"]
[Round "9"]
[White "Rodin, Dmitrij"]
[Black "Okrugin, Sergey"]
[Result "0-1"]
[ECO "B90"]
[WhiteElo "2402"]
[BlackElo "2334"]
[Annotator "NA"]
[PlyCount "86"]
[EventDate "2018.06.26"]
[EventType "swiss"]
[EventCountry "RUS"]
[SourceTitle "playchess.com"]
[Source "ChessBase"]
[SourceQuality "1"]
[TimeControl "40/5400+30:1800+30"]

1. e4 {[%emt 0:00:00]} c5 {[%emt 0:00:00]} 2. Nf3 {[%emt 0:00:00]} d6 {[%emt 0:00:00]} 3. d4 {[%emt 0:00:00]} cxd4 {[%emt 0:00:05]} 4. Nxd4 {[%emt 0:00:00]} Nf6 {[%emt 0:00:06]} 5. Nc3 {[%emt 0:00:00]} a6 {[%emt 0:00:04]} 6. Be3 {[%emt 0:00:32]} e5 {[%emt 0:00:08]} 7. Nf3 {[%emt 0:00:07]} Qc7 {[%emt 0:00:07]} 8. Be2 {[%emt 0:04:05]} Be7 {[%emt 0:03:14]} 9. a4 {[%emt 0:00:55]} O-O {[%emt 0:05:19]} 10. O-O {[%emt 0:02:19]} Be6 {[%emt 0:05:28]} 11. a5 {[%emt 0:01:34]} Nbd7 {[%emt 0:05:54]} 12. Ng5 {[%emt 0:09:04]} Rac8 {[%emt 0:13:23]} 13. Ra4 {[%emt 0:27:33]} Rfe8 {[%emt 0:13:21]} 14. Nxe6 {[%emt 0:03:25]} fxe6 {[%emt 0:00:15]} 15. Bc4 {[%emt 0:04:24]} Bf8 {[%emt 0:01:33]} 16. Ba2 {[%emt 0:09:15]} Kh8 {[%emt 0:05:04]} 17. Qf3 {[%emt 0:07:09]} Nb8 {[%emt 0:07:34]} 18. Rd1 {[%emt 0:03:41]} Nc6 {[%emt 0:01:22]} 19. Bb6 {[%emt 0:00:11]} Qe7 {[%emt 0:04:04]} 20. Be3 {[%emt 0:07:17]} Qc7 {[%emt 0:00:35]} 21. Qh3 {[%emt 0:01:14]} Qe7 {[%emt 0:02:43]} 22. Rc4 {[%emt 0:04:04]} Rc7 {[%emt 0:05:15]} 23. Bb6 {[%emt 0:00:54]} Rcc8 {[%emt 0:01:09]} 24. Be3 {[%emt 0:01:37]} Rc7 {[%emt 0:00:35]} 25. Bb6 {[%emt 0:00:47]} Rcc8 {[%emt 0:00:07]} 26. Na4 {[%emt 0:04:01]} d5 {[%emt 0:05:11]} 27. exd5 {[%emt 0:01:25]} exd5 {[%emt 0:00:08]} 28. Rc5 {[%emt 0:00:51]} d4 {[%emt 0:00:57]} 29. c3 {[%emt 0:02:00]} Qd7 {[%emt 0:03:08]} 30. Qxd7 {[%emt 0:02:24]} Nxd7 {[%emt 0:00:08]} 31. Rd5 {[%emt 0:00:47]} Nf6 {[%emt 0:00:18]} 32. g3 {[%emt 0:02:01]} Nxd5 {[%emt 0:00:33]} 33. Bxd5 {[%emt 0:00:01]} dxc3 {[%emt 0:02:01]} 34. bxc3 {[%emt 0:00:14]} Bd6 {[%emt 0:03:58]} 35. Be4 {[%emt 0:01:28]} Bc7 {[%emt 0:00:39]} 36. Rd7 {[%emt 0:00:26]} Bxb6 {[%emt 0:00:25]} 37. axb6 {[%emt 0:01:04]} Na5 {[%emt 0:02:16]} 38. Bxb7 {[%emt 0:01:01]} Nxb7 {[%emt 0:00:17]} 39. Rxb7 {[%emt 0:00:01]} Rc4 {[%emt 0:00:10]} 40. Ra7 {[%emt 0:00:00]} Rxa4 {[%emt 0:00:00]} 41. b7 {[%emt 0:00:14]} Ra1+ {[%emt 0:00:20]} 42. Kg2 {[%emt 0:00:13]} Rb1 {[%emt 0:00:36]} 43. c4 {[%emt 0:12:17]} Rb8 {[%emt 0:00:16]} 0-1